bitfinex-derivatives/quotes_ETHF0:USTF0_20250209
["timestamp","ask_amount","ask_price","bid_price","bid_amount"]
[1739129430669,3.21151822,2634.5,2634.2,3.40804592]
[1739129430871,3.21151822,2634.5,2634.0,0.00569822]
[1739129431469,0.00332127,2634.4,2634.0,0.00569822]
[1739129432466,0.00332127,2634.4,2634.2,3.40804592]
[1739129433364,0.00332127,2634.4,2634.0,0.00569822]
[1739129438474,0.00332127,2634.4,2634.2,3.40804592]
[1739129439974,0.00332127,2634.4,2634.0,0.00569822]
[1739129442768,0.00332127,2634.4,2634.2,3.40804592]
[1739129445272,0.00332127,2634.4,2634.2,6.61584592]
[1739129445669,0.00332127,2634.4,2634.3,0.57674378]
[1739129446271,0.00332127,2634.4,2634.3,6.57674378]
[1739129446471,3.2078,2635.2,2634.3,1.10805378]
[1739129446679,3.2078,2635.2,2634.9,3.40804592]
[1739129447479,3.40804592,2635.8,2634.9,3.40804592]
[1739129447480,3.2078,2635.5,2634.9,3.40804592]
[1739129449672,3.2078,2635.5,2634.9,6.61584592]
[1739129450780,3.2078,2635.5,2635.2,3.40804592]
[1739129453677,3.2078,2635.5,2634.9,6.61584592]
[1739129453981,3.2078,2635.5,2635.2,3.40804592]
[1739129454180,3.2078,2635.8,2635.2,3.40804592]
[1739129454373,3.2078,2635.8,2635.5,3.40804592]
[1739129455173,3.2078,2636.2,2635.7,0.53101]
[1739129455376,3.2078,2636.2,2635.9,3.40804592]
[1739129458380,3.2078,2636.2,2635.6,3.40804592]
[1739129458783,3.2078,2635.9,2635.3,3.40804592]
[1739129459277,3.2078,2635.9,2635.6,3.40804592]
[1739129461787,2.914,2636.0,2635.6,3.40804592]
[1739129463385,4.465,2636.2,2635.6,3.40804592]
[1739129465889,3.2078,2636.0,2635.4,3.2078]
[1739129466386,3.2078,2635.7,2635.2,0.00569822]
[1739129466581,3.2078,2635.4,2635.2,0.00569822]
[1739129468586,3.96241677,2635.3,2634.4,3.40804592]
[1739129468887,3.2078,2635.0,2634.4,3.40804592]
[1739129469194,7.6728,2635.0,2634.3,3.2078]
[1739129469492,4.465,2634.9,2634.3,3.2078]
[1739129469883,4.47069822,2634.9,2634.3,3.21349822]
[1739129470491,3.2078,2634.7,2634.3,0.00569822]
[1739129471994,3.2078,2634.5,2634.3,0.00569822]
[1739129472683,1.662,2634.4,2634.3,0.00569822]
[1739129476588,2.19329,2634.4,2634.3,0.00569822]
[1739129476795,2.19329,2634.4,2633.5,3.40804592]
[1739129476796,7.662,2634.4,2633.5,3.40804592]
[1739129476993,3.2078,2633.7,2633.2,3.40804592]
[1739129477992,3.2078,2633.7,2633.2,3.41374414]
[1739129478797,3.2078,2633.7,2633.2,0.00569822]
[1739129480098,3.2078,2633.3,2633.2,0.00569822]
[1739129480492,13.14735592,2633.3,2632.3,3.2078]
[1739129480701,13.14735592,2633.3,2631.9,3.40804592]
[1739129480702,3.2078,2632.4,2631.9,3.40804592]
[1739129480897,3.2078,2632.8,2631.9,6.61584592]
[1739129481805,3.2078,2632.8,2632.1,0.00569822]
[1739129482198,3.2078,2632.8,2632.2,6.61584592]
[1739129482398,3.2078,2633.1,2632.2,6.61584592]
[1739129482715,7.17801326,2633.1,2632.2,6.61584592]
[1739129483800,3.2078,2633.1,2632.5,3.40804592]
[1739129484002,3.2078,2633.1,2632.5,6.61584592]
[1739129484200,1.663,2633.4,2632.8,6.61584592]
[1739129485001,4.31890898,2633.3,2632.5,3.2078]
[1739129485200,3.2078,2633.1,2632.2,6.61584592]
[1739129485407,3.2078,2633.1,2632.2,3.40804592]
[1739129485705,3.2078,2633.1,2632.3,3.2078]
[1739129485906,3.2078,2633.1,2632.2,3.40804592]
[1739129486205,3.2078,2633.1,2632.3,3.2078]
[1739129487802,3.2078,2633.1,2632.5,3.40804592]
[1739129488104,1.663,2633.4,2632.8,3.40804592]
[1739129488304,4.577,2633.4,2632.8,3.40804592]
[1739129488806,2.914,2633.4,2632.9,3.2078]
[1739129491209,3.21349822,2633.5,2633.1,3.40804592]
[1739129492411,0.00569822,2633.5,2633.3,3.2078]
[1739129494112,0.00569822,2633.5,2633.4,3.40804592]
[1739129494309,4.8708,2634.5,2633.5,0.53146]
[1739129494514,4.8708,2634.5,2633.9,3.40804592]
[1739129495116,3.2078,2634.5,2633.9,6.61584592]
[1739129495304,3.2078,2634.5,2633.9,3.40804592]
[1739129495507,0.00569822,2634.5,2633.9,3.41374414]
[1739129496407,0.00569822,2634.5,2634.1,3.2078]
[1739129496914,0.00569822,2634.5,2634.2,3.40804592]
[1739129500308,0.00569822,2634.5,2634.4,3.2078]
[1739129507121,0.00569822,2634.5,2633.9,6.62154414]
[1739129512516,0.00569822,2634.5,2634.2,3.40804592]
[1739129515425,0.00569822,2634.5,2634.2,6.61584592]
[1739129516022,0.00569822,2634.5,2634.2,3.40804592]
[1739129516817,0.00569822,2634.5,2633.9,3.21349822]
[1739129517419,3.2078,2634.3,2633.9,3.21349822]
[1739129517722,3.41374414,2634.5,2633.9,0.00569822]
[1739129517723,3.2078,2634.0,2633.9,0.00569822]
[1739129518426,13.5450582,2634.0,2633.1,3.2078]
[1739129518731,3.2078,2633.7,2633.1,3.2078]
[1739129519021,1.676,2633.6,2633.1,3.2078]
[1739129519227,5.82570246,2633.6,2633.1,3.2078]
[1739129519627,5.82570246,2633.6,2633.1,3.21349822]
[1739129520231,4.14970246,2633.6,2633.1,3.21349822]
[1739129520424,7.6728,2633.7,2633.1,3.21349822]
[1739129521933,3.2078,2633.7,2633.1,0.00569822]
[1739129522130,3.2078,2633.4,2633.1,0.00569822]
[1739129522637,9.70085487,2633.3,2632.1,8.16458183]
[1739129522930,3.2078,2632.6,2632.1,8.16458183]
[1739129523135,3.2078,2632.6,2632.1,3.40804592]
[1739129523436,3.40804592,2633.0,2632.1,3.40804592]
[1739129523437,6.61584592,2633.0,2632.1,3.40804592]
[1739129523631,3.2078,2633.0,2632.0,23.84250076]
[1739129523936,0.00569822,2632.8,2632.3,0.00569822]
[1739129525241,0.00569822,2632.8,2632.6,7.17030076]
[1739129526539,0.00569822,2632.8,2632.6,13.70194076]
[1739129526834,0.00569822,2632.8,2632.6,13.17030076]
[1739129527940,0.00569822,2632.8,2632.6,3.96250076]
[1739129528142,0.00569822,2632.8,2632.3,3.21349822]
[1739129528143,0.00569822,2632.8,2632.3,7.17599898]
[1739129529235,0.00569822,2632.8,2632.3,0.00569822]
[1739129529436,3.2078,2632.7,2632.3,0.00569822]
[1739129529637,3.2078,2632.4,2632.3,0.00569822]
[1739129531338,10.8968,2632.4,2631.4,3.96250076]
[1739129531640,3.2078,2632.0,2631.2,3.2078]
[1739129532648,3.2078,2632.0,2631.3,0.00569822]
[1739129533145,4.08099156,2631.9,2631.3,0.00569822]
[1739129533844,1.69,2631.8,2631.3,0.00569822]
[1739129534046,2.914,2631.7,2631.3,0.00569822]
[1739129537748,3.2078,2631.6,2631.3,0.00569822]
[1739129540453,2.914,2631.5,2631.3,0.00569822]
[1739129542046,2.914,2631.5,2631.3,0.00433483]
[1739129542047,4.02306327,2631.4,2631.3,0.00433483]
[1739129542247,11.40206327,2631.4,2631.3,0.00433483]
[1739129542447,17.40206327,2631.4,2631.3,0.00433483]
[1739129542645,17.93396327,2631.4,2631.3,0.00433483]
[1739129542949,17.40206327,2631.4,2631.3,0.00433483]
[1739129543548,17.93396327,2631.4,2631.3,0.00433483]
[1739129543749,17.40206327,2631.4,2631.3,0.00433483]
[1739129544149,11.40206327,2631.4,2631.3,0.00433483]
[1739129544546,17.40206327,2631.4,2631.3,0.00433483]
[1739129545245,11.40206327,2631.4,2631.3,0.00433483]
[1739129545442,9.065,2631.4,2631.3,0.00433483]
[1739129545643,3.2078,2631.6,2631.3,0.00433483]
[1739129548550,3.96250076,2631.5,2631.3,0.00433483]
[1739129548746,8.11375837,2631.5,2631.3,0.00433483]
[1739129549452,1.688,2631.4,2631.3,0.00433483]
[1739129549641,2.2199,2631.4,2631.3,0.00433483]
[1739129549845,12.27325425,2631.4,2631.3,0.00433483]
[1739129550256,12.33723821,2631.4,2631.3,0.00433483]
[1739129553648,12.27325425,2631.4,2631.3,0.00433483]
[1739129553849,12.33723049,2631.4,2631.3,0.00433483]
[1739129554346,5.80533049,2631.4,2631.3,0.00433483]
[1739129554548,5.80533691,2631.4,2631.3,0.00433483]
[1739129554747,5.74135425,2631.4,2631.3,0.00433483]
[1739129556553,5.80533882,2631.4,2631.3,0.00433483]
[1739129556749,5.74135425,2631.4,2631.3,0.00433483]
[1739129556951,12.33723612,2631.4,2631.3,0.00433483]
[1739129557253,12.33723283,2631.4,2631.3,0.00433483]
[1739129559258,6.33723283,2631.4,2631.3,0.00433483]
[1739129559754,12.33723283,2631.4,2631.3,0.00433483]
[1739129560144,5.80533283,2631.4,2631.3,0.00433483]
[1739129560347,5.80633381,2631.4,2631.3,0.00433483]
[1739129561356,5.74235425,2631.4,2631.3,0.00433483]
[1739129561762,6.33822863,2631.4,2631.3,0.00433483]
[1739129561949,5.80632863,2631.4,2631.3,0.00433483]
[1739129563157,5.74235425,2631.4,2631.3,0.00433483]
[1739129563350,5.80634437,2631.4,2631.3,0.00433483]
[1739129564047,4.11734437,2631.4,2631.3,0.00433483]
[1739129564247,5.80434437,2631.4,2631.3,0.00433483]
[1739129564459,5.74035425,2631.4,2631.3,0.00433483]
[1739129565145,6.33623209,2631.4,2631.3,0.00433483]
[1739129566353,6.33623265,2631.4,2631.3,0.00433483]
[1739129566546,6.33623315,2631.4,2631.3,0.00433483]
[1739129566760,5.80433315,2631.4,2631.3,0.00433483]
[1739129566960,5.74035425,2631.4,2631.3,0.00433483]
[1739129567260,1.687,2631.4,2631.3,0.00433483]
[1739129569757,3.2078,2631.6,2631.3,0.00433483]
[1739129569965,4.8908,2631.6,2631.3,0.00433483]
[1739129570761,3.2078,2631.6,2631.3,0.00433483]
[1739129572361,4.10313413,2631.5,2631.3,0.00433483]
[1739129577266,8.59752489,2631.5,2631.3,0.00433483]
[1739129577570,3.94204648,2631.4,2631.3,0.00433483]
[1739129577867,4.00602618,2631.4,2631.3,0.00433483]
[1739129578069,8.03930713,2631.4,2631.3,0.00433483]
[1739129578471,14.03930518,2631.4,2631.3,0.00433483]
[1739129578672,14.63995483,2631.4,2631.3,0.00433483]
[1739129579066,0.53201,2630.9,2630.0,3.2078]
[1739129579269,3.2078,2630.4,2630.0,3.2078]
[1739129580868,0.00569822,2630.5,2630.0,3.2078]
[1739129581068,0.00569822,2630.5,2630.1,3.96991443]
[1739129581472,0.00569822,2630.5,2630.0,3.2078]
[1739129581473,0.00569822,2630.5,2630.2,0.57736613]
[1739129582277,0.00569822,2630.5,2630.0,3.2078]
[1739129583276,0.00569822,2630.5,2630.1,0.57738661]
[1739129583974,0.00569822,2630.5,2630.3,3.2078]
[1739129588381,0.00569822,2630.5,2630.0,3.2078]
[1739129588584,3.2078,2630.4,2630.0,3.2078]
[1739129590883,3.2078,2630.1,2629.9,0.00379882]
[1739129595173,4.07669016,2630.0,2629.9,0.00379882]
[1739129595485,3.2078,2630.1,2629.9,0.00379882]
[1739129597689,4.8758,2630.4,2629.9,0.00379882]
[1739129598085,9.07195573,2630.4,2629.9,0.00379882]
[1739129599980,11.98595573,2630.4,2629.9,0.00379882]
[1739129600582,3.2078,2630.1,2629.9,0.00379882]
[1739129607088,3.2078,2630.4,2629.9,3.21159882]
[1739129608197,3.2078,2630.4,2629.9,0.00379882]
[1739129609095,3.2078,2630.1,2629.9,0.00379882]
[1739129612001,3.2078,2630.4,2629.9,0.00379882]
[1739129616098,0.00569822,2630.5,2630.1,3.41204983]
[1739129616597,0.00569822,2630.5,2630.1,6.61984983]
[1739129617895,0.00569822,2630.5,2629.9,0.00379882]
[1739129618297,0.00569822,2630.5,2630.0,0.57762455]
[1739129618701,3.2078,2630.4,2630.0,0.57762455]
[1739129618905,3.2078,2630.1,2629.9,0.00379882]
[1739129621308,3.9590017,2630.0,2629.9,0.00379882]
[1739129626704,11.3380017,2630.0,2629.9,0.00379882]
[1739129629915,7.379,2630.0,2629.9,0.00379882]
[1739129632607,3.2078,2630.1,2629.9,0.00379882]
[1739129635218,4.07142733,2630.0,2629.9,0.00379882]
[1739129637010,10.60360733,2630.0,2629.9,0.00379882]
[1739129637209,11.27023869,2630.0,2629.9,0.00379882]
[1739129639211,11.27023113,2630.0,2629.9,0.00379882]
[1739129639515,10.73738105,2630.0,2628.4,0.5768047]
[1739129639716,3.41204983,2628.5,2627.7,3.2078]
[1739129639907,3.2078,2628.3,2627.7,3.2078]
[1739129640715,3.21349822,2628.3,2627.7,3.2078]
[1739129641212,3.21349822,2628.3,2627.4,3.2078]
[1739129641213,3.2078,2628.0,2627.4,3.2078]
[1739129641418,3.2078,2627.7,2627.3,3.41204983]
[1739129641619,3.2078,2627.7,2627.0,3.2078]
[1739129641620,3.2078,2627.7,2627.0,6.61984983]
[1739129642415,3.2078,2627.7,2627.0,3.41204983]
[1739129642621,3.2078,2627.7,2627.0,6.61984983]
[1739129643321,3.2078,2627.7,2627.0,3.41204983]
[1739129643522,3.2078,2627.7,2627.0,6.61984983]
[1739129643716,3.2078,2627.7,2627.0,3.41204983]
[1739129643908,3.2078,2627.7,2627.0,6.61984983]
[1739129644618,3.2078,2627.7,2627.0,3.41204983]
[1739129645012,3.2078,2627.7,2627.0,6.61984983]
[1739129645415,3.2078,2627.7,2627.0,3.41204983]
[1739129645719,3.2078,2627.4,2626.7,6.61984983]
[1739129645913,4.8768,2627.4,2626.7,6.61984983]
[1739129646113,3.9974778,2627.3,2626.7,6.61984983]
[1739129646618,3.2078,2627.1,2626.5,3.2078]
[1739129646817,3.2078,2627.1,2626.2,3.2078]
[1739129647325,0.00570917,2626.9,2626.2,3.2078]
[1739129647713,0.00570917,2626.9,2626.4,3.41204983]
[1739129650113,0.00570917,2626.9,2626.5,3.2078]
[1739129650316,0.00570917,2626.9,2626.4,3.41204983]
[1739129650623,0.00570917,2626.9,2626.7,3.41204983]
[1739129651924,0.00570917,2626.9,2626.8,3.74063]
[1739129652320,0.00570917,2626.9,2626.8,9.74063]
[1739129652825,0.00570917,2626.9,2626.8,9.2078]
[1739129653018,0.00570917,2626.9,2626.8,9.74063]
[1739129655228,4.8788,2628.3,2626.8,12.61984983]
[1739129655414,4.8788,2628.3,2627.6,3.41204983]
[1739129656421,0.00570917,2628.2,2627.7,0.00570917]
[1739129657225,0.00570917,2628.2,2627.9,3.41204983]
[1739129657430,0.00570917,2628.2,2627.9,6.61984983]
[1739129657729,0.00570917,2628.2,2627.9,7.15243983]
[1739129657927,0.00570917,2628.2,2627.9,12.61984983]
[1739129658333,0.00570917,2628.2,2628.1,0.53257]
[1739129658533,0.00570917,2628.2,2628.0,0.53258]
[1739129658933,0.00570917,2628.2,2627.9,6.61984983]
[1739129659123,0.00570917,2628.2,2627.9,7.15244983]
[1739129659436,0.00570917,2628.2,2627.9,6.61984983]
[1739129659826,0.00570917,2628.2,2628.1,3.2078]
[1739129660333,0.00570917,2628.2,2628.1,9.74037]
[1739129662838,0.00570917,2628.2,2628.1,9.2078]
[1739129663029,0.00570917,2628.2,2628.1,3.2078]
[1739129663426,0.00570917,2628.2,2628.1,3.74037]
[1739129664532,0.00570917,2628.2,2628.1,3.2078]
[1739129665233,0.00570917,2628.2,2628.1,3.74037]
[1739129668039,0.00570917,2628.2,2628.1,9.74037]
[1739129668937,1.676,2629.3,2628.6,0.53246]
[1739129669138,1.676,2629.3,2628.6,3.41204983]
[1739129670139,0.00570917,2629.2,2628.6,3.41204983]
[1739129670347,3.2078,2629.1,2628.3,3.41204983]
[1739129671240,3.2078,2628.8,2628.3,3.41204983]
[1739129672339,3.2078,2628.8,2628.2,3.2078]
[1739129674040,4.8848,2629.1,2628.3,3.41204983]
[1739129674338,9.04444856,2629.1,2628.3,3.94455983]
[1739129675038,9.04444856,2629.1,2628.3,3.41204983]
[1739129675231,0.00570917,2629.2,2628.5,3.2078]
[1739129675846,0.53243,2628.8,2628.2,3.2078]
[1739129676037,3.2078,2628.8,2628.2,3.2078]
[1739129676237,3.41204983,2628.9,2627.9,3.41204983]
[1739129676238,3.2078,2628.5,2627.9,3.41204983]
[1739129679942,3.2078,2628.5,2627.7,3.21350917]
[1739129681446,3.2078,2628.5,2627.7,0.00570917]
[1739129683841,3.2078,2628.5,2627.9,3.41204983]
[1739129684148,3.2078,2628.8,2628.0,3.2078]
[1739129684338,3.2078,2628.8,2628.1,3.2078]
[1739129684534,3.2078,2628.8,2627.9,3.41204983]
[1739129684840,3.2078,2628.8,2628.1,3.2078]
[1739129685645,3.2078,2628.8,2628.2,0.57735714]
[1739129686147,3.2078,2628.8,2628.1,3.2078]
[1739129686844,3.2078,2628.8,2628.2,3.41204983]
[1739129687039,3.2078,2629.1,2628.4,3.2078]
[1739129688642,3.2078,2629.1,2628.5,3.41204983]
[1739129688842,3.2078,2629.1,2628.5,3.98983416]
[1739129689345,3.2078,2629.1,2628.5,3.41204983]
[1739129691248,3.2078,2629.1,2628.6,0.57770309]
[1739129691747,3.2078,2629.1,2628.5,3.41204983]
[1739129693550,3.2078,2629.1,2628.6,0.57752283]
[1739129694050,3.2078,2629.1,2628.5,3.41204983]
[1739129694554,0.00570917,2629.2,2628.8,7.15225983]
[1739129694946,0.00570917,2629.2,2628.9,0.57742654]
[1739129695343,0.00570917,2629.2,2628.8,6.61984983]
[1739129699043,0.00570917,2629.2,2628.8,7.15226983]
[1739129700754,0.00570917,2629.2,2628.8,6.61984983]
[1739129702057,0.00570917,2629.2,2629.1,3.41204983]
[1739129702948,0.00570917,2629.2,2629.1,6.61984983]
[1739129703250,0.00570917,2629.2,2629.1,3.41204983]
[1739129704749,0.00570917,2629.2,2629.1,6.61984983]
[1739129704956,0.00570917,2629.2,2629.1,3.41204983]
[1739129705146,0.00570917,2629.2,2629.1,6.61984983]
[1739129705558,0.00570917,2629.2,2628.8,6.61984983]
[1739129705859,0.00570917,2629.2,2628.8,3.41204983]
[1739129706757,0.00570917,2629.2,2628.5,3.2078]
[1739129706758,3.2078,2629.1,2628.5,3.41204983]
[1739129709859,3.2078,2629.1,2628.8,3.41204983]
[1739129710060,0.00570917,2629.2,2628.9,3.2078]
[1739129711256,0.00570917,2629.2,2629.1,3.41204983]
[1739129711461,3.2078,2629.8,2629.1,3.41204983]
[1739129711658,3.2078,2629.8,2629.3,3.2078]
[1739129712767,3.21350917,2629.8,2629.3,0.00570917]
[1739129713764,3.21350917,2629.8,2629.3,3.21350917]
[1739129714559,3.2078,2629.5,2629.3,0.00570917]
[1739129718066,3.417759,2629.8,2629.3,0.00570917]
[1739129718067,0.00570917,2629.8,2629.3,0.00570917]
[1739129718658,0.00570917,2629.8,2629.3,3.21350917]
[1739129719162,0.00570917,2629.8,2629.3,0.00570917]
[1739129719467,3.2078,2629.6,2629.3,0.00570917]
[1739129722662,4.40138276,2629.5,2629.3,0.00570917]
[1739129722874,7.81343259,2629.5,2629.3,0.00570917]
[1739129732778,4.8778,2629.6,2629.3,0.00570917]
[1739129733179,3.2078,2629.6,2629.3,0.00570917]
[1739129734178,0.00570917,2629.8,2629.4,3.41204983]
[1739129735879,0.00570917,2629.8,2629.7,3.41204983]
[1739129739903,0.00570917,2629.8,2629.4,3.41204983]
[1739129740994,0.00570917,2629.8,2629.3,0.00570917]
[1739129741202,0.00570917,2629.8,2629.4,3.41204983]
[1739129741506,0.00570917,2629.8,2629.7,3.41204983]
[1739129745902,0.53199,2631.0,2629.7,3.94428983]
[1739129745903,3.2078,2630.5,2629.7,3.94428983]
[1739129746104,3.2078,2630.5,2630.0,3.41204983]
[1739129747001,3.2078,2630.8,2630.2,3.2078]
[1739129747205,0.00570917,2630.5,2630.2,3.2078]
[1739129751606,3.21350917,2630.5,2630.0,3.41204983]
[1739129754701,0.00570917,2630.5,2630.0,6.61984983]
[1739129756010,0.00570917,2630.5,2630.0,3.41204983]
[1739129756313,3.2078,2630.3,2629.7,5.08104983]
[1739129756506,3.2078,2630.3,2629.7,3.41204983]
[1739129757404,3.2078,2630.3,2629.6,3.2078]
[1739129757805,3.2078,2630.0,2629.4,3.41204983]
[1739129759716,3.2078,2630.0,2629.3,3.21350917]
[1739129760008,3.2078,2629.4,2629.3,0.00570917]
[1739129760409,3.2078,2629.7,2629.3,0.00570917]
[1739129764208,3.2078,2629.7,2629.4,3.41204983]
[1739129764422,3.2078,2630.1,2629.5,3.2078]
[1739129764619,3.2078,2630.1,2629.7,3.41204983]
[1739129764817,3.2078,2630.4,2629.7,3.41204983]
[1739129765025,3.2078,2630.4,2629.8,3.2078]
[1739129765716,3.2078,2630.4,2629.9,0.57693508]
[1739129766418,3.2078,2630.4,2629.7,6.61984983]
[1739129766911,3.2078,2630.4,2629.8,0.57698525]
[1739129767315,3.2078,2630.4,2629.7,6.61984983]
[1739129768114,0.00570917,2630.5,2629.5,1.671]
[1739129768115,3.2078,2630.1,2629.5,1.671]
[1739129768521,3.2078,2630.1,2629.4,6.61984983]
[1739129768915,3.2078,2630.1,2629.4,3.41204983]
[1739129769125,3.2078,2630.1,2629.7,3.41204983]
[1739129769620,3.2078,2630.1,2629.4,3.41204983]
[1739129769817,3.2078,2630.1,2629.5,0.57706008]
[1739129770125,3.2078,2629.8,2629.5,0.57706008]
[1739129770323,3.2078,2629.8,2629.4,3.41204983]
[1739129772619,3.2078,2629.8,2629.3,0.00570917]
[1739129778931,3.2078,2629.8,2629.4,3.41204983]
[1739129779624,3.2078,2630.1,2629.4,3.41204983]
[1739129779826,3.2078,2629.6,2629.3,0.00570917]
[1739129781120,7.50235005,2629.5,2628.5,3.41204983]
[1739129781422,3.2078,2629.0,2628.5,3.41204983]
[1739129782220,3.21350917,2629.0,2628.5,3.417759]
[1739129782419,3.21350917,2629.0,2628.5,0.00570917]
[1739129783330,3.21350917,2629.0,2628.5,3.417759]
[1739129783536,3.21350917,2629.0,2628.5,6.625559]
[1739129783828,3.21350917,2629.0,2628.5,3.417759]
[1739129784039,3.21350917,2629.0,2628.5,6.625559]
[1739129786439,0.00570917,2629.0,2628.8,3.94446983]
[1739129786643,0.00570917,2629.0,2628.9,3.2078]
[1739129786842,0.00570917,2629.0,2628.9,3.7402]
[1739129787142,3.2078,2629.9,2629.1,0.53235]
[1739129787435,3.2078,2629.9,2629.5,3.41204983]
[1739129789536,0.00570917,2630.0,2629.8,3.41204983]
[1739129789733,3.2078,2629.9,2629.2,3.2078]
[1739129789936,3.2078,2629.6,2628.9,3.41204983]
[1739129791237,3.2078,2629.6,2629.0,3.2078]
[1739129792839,3.2078,2629.6,2628.9,3.41204983]
[1739129793634,3.2078,2629.6,2628.9,6.61984983]
[1739129793934,3.2078,2629.3,2628.9,3.41204983]
[1739129795134,3.2078,2629.3,2628.6,3.41204983]
[1739129797744,3.2078,2629.3,2628.6,6.61984983]
[1739129798347,3.2078,2629.3,2628.6,3.41204983]
[1739129799847,3.2078,2629.3,2628.6,6.61984983]
[1739129800248,3.2078,2629.3,2628.6,3.41204983]
[1739129802148,3.2078,2629.3,2628.6,6.61984983]
[1739129802345,3.2078,2629.3,2628.9,3.41204983]
[1739129802947,3.2078,2629.6,2628.9,6.61984983]
[1739129803246,3.2078,2629.6,2629.2,3.2078]
[1739129803450,3.2078,2629.6,2629.2,6.61984983]
[1739129803650,3.2078,2629.6,2629.3,0.57687432]
[1739129804151,3.2078,2629.6,2629.2,6.61984983]
[1739129804849,3.2078,2629.6,2629.3,0.5768477]
[1739129805450,3.2078,2629.6,2629.2,6.61984983]
[1739129805748,3.2078,2629.6,2628.9,3.41204983]
[1739129808257,3.2078,2629.6,2629.0,0.57688289]
[1739129808957,3.417759,2630.0,2629.0,0.57688289]
[1739129808958,0.00570917,2630.0,2629.5,3.41204983]
[1739129809255,0.00570917,2630.0,2629.6,3.2078]
[1739129810051,0.00570917,2630.0,2629.5,3.41204983]
[1739129810252,0.00570917,2630.0,2629.6,3.2078]
[1739129811053,0.00570917,2630.0,2629.5,3.41204983]
[1739129812052,0.00570917,2630.0,2629.6,3.2078]
[1739129812256,0.00570917,2630.0,2629.8,3.41204983]
[1739129813254,0.00570917,2630.0,2629.6,3.2078]
[1739129817359,0.00570917,2630.0,2629.5,3.41204983]
[1739129817557,0.00570917,2630.0,2629.7,3.2078]
[1739129818762,0.00570917,2630.0,2629.5,3.41204983]
[1739129819459,0.00570917,2630.0,2629.7,3.2078]
[1739129819658,0.00570917,2630.0,2629.5,3.41204983]
[1739129820058,0.00570917,2630.0,2629.6,0.57621412]
[1739129820258,0.00570917,2630.0,2629.8,3.2078]
[1739129820457,2.914,2630.5,2629.8,8.29984983]
[1739129820667,2.914,2630.5,2630.4,3.41204983]
[1739129820965,7.6728,2630.8,2630.4,6.61984983]
[1739129820966,3.2078,2630.8,2630.4,6.61984983]
[1739129821860,3.2078,2630.8,2630.4,3.41204983]
[1739129822269,3.2078,2630.8,2630.3,0.00570917]
[1739129825970,3.2078,2630.5,2630.3,0.00570917]
[1739129828173,9.2078,2630.5,2630.3,0.00570917]
[1739129828366,4.17463529,2630.4,2629.3,3.2078]
[1739129828567,3.2078,2630.0,2629.3,3.2078]
[1739129829566,3.2078,2630.0,2629.4,0.00570917]
[1739129829972,3.2078,2630.0,2629.5,3.41204983]
[1739129831061,3.2078,2630.0,2629.4,0.00570917]
[1739129832169,4.35849892,2629.9,2629.4,0.00570917]
[1739129832370,3.2078,2630.0,2629.4,0.00570917]
[1739129832970,3.2078,2630.0,2629.8,3.41204983]
[1739129833974,3.2078,2630.3,2629.8,3.41204983]
[1739129835077,6.61984983,2630.6,2629.8,3.41204983]
[1739129835288,3.2078,2630.0,2629.4,0.00570917]
[1739129835476,3.2078,2630.0,2629.5,0.5766547]
[1739129835869,0.01143688,2629.8,2629.5,0.5766547]
[1739129836572,0.01143688,2629.8,2629.4,0.00570917]
[1739129836875,3.2078,2630.0,2629.4,0.00570917]
[1739129837076,0.01143688,2629.6,2629.4,0.00570917]
[1739129837969,0.01143688,2629.5,2629.4,0.00570917]
[1739129838773,0.01143688,2629.5,2629.4,0.58289242]
[1739129840182,0.01143688,2629.5,2629.4,0.00570917]
[1739129841780,0.01143688,2629.5,2629.4,0.58281315]
[1739129843476,3.21923688,2629.5,2629.4,0.58281315]
[1739129843678,0.01143688,2629.5,2629.4,0.58281315]
[1739129843977,0.01143688,2629.5,2629.4,0.00570917]
[1739129844376,3.21923688,2629.5,2629.4,0.00570917]
[1739129846580,9.21923688,2629.5,2628.6,6.61984983]
[1739129846885,3.2078,2629.2,2628.6,6.61984983]
[1739129847182,0.01143688,2628.9,2628.6,6.61984983]
[1739129847480,0.01143688,2628.9,2628.6,3.41204983]
[1739129847877,0.01143688,2628.9,2628.7,0.57654329]
[1739129848184,0.01143688,2628.8,2628.7,0.57654329]
[1739129848385,0.01143688,2628.8,2628.7,3.78434329]
[1739129848775,0.01143688,2628.8,2628.7,0.57654329]
[1739129849584,0.01143688,2628.8,2628.6,3.41204983]
[1739129850174,0.01143688,2628.7,2628.5,0.00570917]
[1739129850379,3.2078,2628.6,2628.5,0.00570917]
[1739129850581,10.61145431,2628.6,2628.5,0.00570917]
[1739129850977,13.19940448,2628.6,2628.5,0.00570917]
[1739129851174,7.19940448,2628.6,2628.5,0.00570917]
[1739129851381,3.21923688,2628.6,2628.5,0.00570917]
[1739129852187,0.01143688,2628.6,2628.5,0.00570917]
[1739129854188,0.01143688,2628.6,2628.5,6.53818917]
[1739129854375,0.00570917,2629.0,2628.5,6.00570917]
[1739129854581,0.00570917,2629.0,2628.9,6.61984983]
[1739129857689,0.00570917,2629.0,2628.9,7.15224983]
[1739129858391,0.00570917,2629.0,2628.9,7.72789026]
[1739129858893,3.41204983,2630.4,2628.9,16.60754009]
[1739129858894,3.2078,2630.1,2628.9,16.60754009]
[1739129859090,5.11604983,2630.4,2629.5,3.41204983]
[1739129859091,8.32384983,2630.4,2629.5,3.41204983]
[1739129860087,0.00570917,2630.2,2629.5,3.41204983]
[1739129860284,3.2078,2630.1,2629.5,6.61984983]
[1739129861087,0.00570917,2630.2,2629.8,3.41204983]
[1739129862807,3.2078,2630.1,2629.6,3.2078]
[1739129863003,3.2078,2630.1,2629.5,3.41204983]
[1739129867309,0.00570917,2630.2,2629.8,3.41204983]
[1739129867516,0.00570917,2630.2,2629.9,3.2078]
[1739129867918,0.00570917,2630.2,2630.1,3.94420983]
[1739129868219,0.00570917,2630.2,2630.1,3.41204983]
[1739129869217,0.00570917,2630.2,2630.1,3.94420983]
[1739129870316,0.00570917,2630.2,2630.1,4.51911073]
[1739129870718,0.00570917,2630.2,2630.1,3.94420983]
[1739129872209,0.00570917,2630.2,2629.9,6.625559]
[1739129872411,0.00570917,2630.2,2629.9,3.417759]
[1739129872611,0.00570917,2630.2,2629.9,6.625559]
[1739129872810,0.00570917,2630.2,2629.9,3.417759]
[1739129873418,0.00570917,2630.2,2630.0,3.2078]
[1739129873810,0.00570917,2630.2,2630.1,3.2078]
[1739129874615,0.00570917,2630.2,2630.1,0.53216]
[1739129874816,0.00570917,2630.2,2630.1,3.73996]
[1739129875112,3.2078,2631.0,2630.2,0.53213]